[Event "British Championship 2024"]
[Site "Hull"]
[Date "2024.07.31"]
[Round "3.19"]
[White "Kanyamarala, Tarun"]
[Black "Badacsonyi, Stanley"]
[Result "1-0"]
[Annotator "RC"]
[ECO "E73"]
[WhiteElo "2333"]
[BlackElo "2132"]
[PlyCount "77"]
[EventDate "2024.07.31"]
[EventCountry "GBR"]
[SourceTitle "playchess.com"]
[Source "ChessBase"]
[SourceQuality "1"]
[TimeControl "40/5400+30:1800+30"]

1. d4 {[%emt 0:00:03]} Nf6 {[%emt 0:00:04]} 2. c4 {[%emt 0:00:09]} g6 {[%emt 0:00:02]} 3. Nc3 {[%emt 0:00:08]} Bg7 {[%emt 0:00:04]} 4. e4 {[%emt 0:00:09]} d6 {[%emt 0:00:03]} 5. Be2 {[%emt 0:00:13]} O-O {[%emt 0:00:23]} 6. h3 {[%emt 0:00:07]} c5 {[%emt 0:01:45]} 7. d5 {[%emt 0:00:16]} b5 {[%emt 0:00:14]} 8. cxb5 {[%emt 0:00:31]} a6 {[%emt 0:00:03]} 9. a4 {[%emt 0:02:59]} axb5 {[%emt 0:00:59]} 10. Bxb5 {[%emt 0:00:14]} Na6 {[%emt 0:00:20]} 11. Nf3 {[%emt 0:03:13]} Nc7 {[%emt 0:00:45]} 12. Bc4 {[%emt 0:03:52]} Ba6 {[%emt 0:07:32]} 13. Qe2 {[%emt 0:03:00]} Bxc4 {[%emt 0:05:41]} 14. Qxc4 {[%emt 0:00:03]} Qb8 {[%emt 0:00:15]} 15. Nd2 {[%emt 0:11:03]} Qb4 {[%emt 0:02:43]} 16. a5 {[%emt 0:01:26]} Rfb8 {[%emt 0:00:48]} 17. Ra4 {[%emt 0:04:10]} Qxc4 {[%emt 0:01:04]} 18. Nxc4 {[%emt 0:00:17]} Rb4 {[%emt 0:00:55]} 19. Rxb4 {[%emt 0:11:55]} cxb4 {[%emt 0:00:24]} 20. Na2 {[%emt 0:00:17]} Nxe4 {[%emt 0:01:08]} 21. Nxb4 {[%emt 0:03:50]} Nf6 {[%emt 0:00:21]} 22. Ke2 {[%emt 0:07:29]} Nfxd5 {[%emt 0:02:51]} 23. Nxd5 {[%emt 0:00:23]} Nxd5 {[%emt 0:00:04]} 24. Bd2 {[%emt 0:00:22]} Nc7 {[%emt 0:05:49]} 25. Nb6 {[%emt 0:05:11]} Rb8 {[%emt 0:02:13]} 26. Rc1 {[%emt 0:01:01]} Rb7 {[%emt 0:04:25]} 27. Na8 {[%emt 0:15:11]} Ne6 {[%emt 0:08:27]} 28. Rc8+ {[%emt 0:00:25]} Bf8 {[%emt 0:01:17]} 29. b4 {[%emt 0:00:42]} f5 {[%emt 0:01:10]} 30. Kd3 {[%emt 0:02:02]} Kf7 {[%emt 0:04:49]} 31. a6 {[%emt 0:01:46]} Ra7 {[%emt 0:00:11]} 32. b5 {[%emt 0:00:23]} Nc5+ {[%emt 0:00:20]} 33. Rxc5 {[%emt 0:06:27]} dxc5 {[%emt 0:00:06]} 34. Nc7 {[%emt 0:00:08]} c4+ {[%emt 0:02:36]} 35. Kc2 {[%emt 0:03:22]} c3 {[%emt 0:01:14]} 36. b6 {[%emt 0:01:18]} Rxa6 {[%emt 0:00:40]} 37. Nxa6 {[%emt 0:00:09]} cxd2 {[%emt 0:00:04]} 38. b7 {[%emt 0:00:11]} d1=N {[%emt 0:00:06]} 39. Kxd1 {[%emt 0:00:16]} 1-0

[Event "British Championship 2024"]
[Site "Hull"]
[Date "2024.07.31"]
[Round "3.20"]
[White "Banerjee, Supratit"]
[Black "Eggleston, David J"]
[Result "0-1"]
[Annotator "RC"]
[ECO "B22"]
[WhiteElo "2115"]
[BlackElo "2335"]
[PlyCount "120"]
[EventDate "2024.07.31"]
[EventCountry "GBR"]
[SourceTitle "playchess.com"]
[Source "ChessBase"]
[SourceQuality "1"]
[TimeControl "40/5400+30:1800+30"]

1. e4 {[%emt 0:00:03]} c5 {[%emt 0:00:08]} 2. c3 {[%emt 0:00:10]} Nf6 {[%emt 0:00:05]} 3. e5 {[%emt 0:00:08]} Nd5 {[%emt 0:00:12]} 4. Nf3 {[%emt 0:00:10]} Nc6 {[%emt 0:00:08]} 5. Bc4 {[%emt 0:00:07]} e6 {[%emt 0:00:21]} 6. d4 {[%emt 0:00:45]} cxd4 {[%emt 0:00:08]} 7. cxd4 {[%emt 0:00:06]} d6 {[%emt 0:00:06]} 8. O-O {[%emt 0:00:08]} Be7 {[%emt 0:00:17]} 9. Qe2 {[%emt 0:00:09]} O-O {[%emt 0:02:23]} 10. Nc3 {[%emt 0:00:45]} Nxc3 {[%emt 0:00:07]} 11. bxc3 {[%emt 0:00:11]} dxe5 {[%emt 0:00:12]} 12. dxe5 {[%emt 0:00:12]} Qa5 {[%emt 0:00:13]} 13. Rb1 {[%emt 0:00:44]} Rd8 {[%emt 0:01:07]} 14. h4 {[%emt 0:03:33]} Qxc3 {[%emt 0:11:36]} 15. Bd2 {[%emt 0:06:17]} Qa3 {[%emt 0:12:56]} 16. Rfc1 {[%emt 0:03:21]} a6 {[%emt 0:06:04]} 17. Qe4 {[%emt 0:06:23]} Qa4 {[%emt 0:05:44]} 18. Bg5 {[%emt 0:02:54]} Rb8 {[%emt 0:16:56]} 19. h5 {[%emt 0:18:45]} h6 {[%emt 0:02:22]} 20. Be3 {[%emt 0:05:15]} Bd7 {[%emt 0:01:28]} 21. Qg4 {[%emt 0:02:27]} Kh8 {[%emt 0:00:26]} 22. Bb6 {[%emt 0:00:29]} Rdc8 {[%emt 0:02:01]} 23. Qf4 {[%emt 0:01:55]} Be8 {[%emt 0:03:55]} 24. Qd2 {[%emt 0:07:50]} Ba3 {[%emt 0:03:53]} 25. Rc2 {[%emt 0:00:52]} Nd4 {[%emt 0:03:05]} 26. Qxd4 {[%emt 0:05:09]} Qxc2 {[%emt 0:00:12]} 27. Bd3 {[%emt 0:00:08]} Qc6 {[%emt 0:00:10]} 28. Be4 {[%emt 0:00:46]} Qc4 {[%emt 0:02:11]} 29. Ba7 {[%emt 0:00:42]} Qxd4 {[%emt 0:04:50]} 30. Nxd4 {[%emt 0:00:18]} b5 {[%emt 0:00:13]} 31. Bxb8 {[%emt 0:01:02]} Rxb8 {[%emt 0:00:07]} 32. Nc6 {[%emt 0:00:10]} Rc8 {[%emt 0:02:21]} 33. Na5 {[%emt 0:00:46]} Rc1+ {[%emt 0:06:26]} 34. Rxc1 {[%emt 0:01:06]} Bxc1 {[%emt 0:00:01]} 35. g3 {[%emt 0:00:35]} Bd2 {[%emt 0:00:29]} 36. Nb7 {[%emt 0:00:14]} Kg8 {[%emt 0:00:18]} 37. f4 {[%emt 0:00:52]} Bd7 {[%emt 0:03:43]} 38. Nd6 {[%emt 0:02:15]} Bb4 {[%emt 0:02:15]} 39. Kf2 {[%emt 0:03:28]} Kf8 {[%emt 0:00:14]} 40. Ke3 {[%emt 0:00:45]} f6 {[%emt 0:03:39]} 41. Bb7 {[%emt 0:31:47]} fxe5 {[%emt 0:31:13]} 42. fxe5 {[%emt 0:02:15]} Ke7 {[%emt 0:03:41]} 43. Ne4 {[%emt 0:01:40]} a5 {[%emt 0:00:12]} 44. Kd4 {[%emt 0:02:26]} Ba3 {[%emt 0:02:22]} 45. Nc5 {[%emt 0:02:22]} Be8 {[%emt 0:00:28]} 46. g4 {[%emt 0:00:53]} Bb2+ {[%emt 0:01:12]} 47. Ke4 {[%emt 0:00:47]} a4 {[%emt 0:00:00]} 48. Nd3 {[%emt 0:00:00]} Bc3 {[%emt 0:00:00]} 49. Ba6 {[%emt 0:00:00]} Bc6+ {[%emt 0:00:00]} 50. Ke3 {[%emt 0:00:00]} a3 {[%emt 0:00:00]} 51. Ke2 {[%emt 0:00:00]} Bd5 {[%emt 0:00:00]} 52. Bxb5 {[%emt 0:00:00]} Bxa2 {[%emt 0:00:00]} 53. Nc1 {[%emt 0:00:00]} Bd5 {[%emt 0:00:00]} 54. Kd3 {[%emt 0:00:00]} Bxe5 {[%emt 0:00:00]} 55. Kc2 {[%emt 0:00:00]} a2 {[%emt 0:00:00]} 56. Nxa2 {[%emt 0:00:00]} Bxa2 {[%emt 0:00:00]} 57. Kd3 {[%emt 0:00:00]} Kf6 {[%emt 0:00:00]} 58. Ke3 {[%emt 0:00:00]} Bd5 {[%emt 0:00:00]} 59. Be2 {[%emt 0:00:00]} Kg5 {[%emt 0:00:00]} 60. Bd1 {[%emt 0:00:00]} Bg2 {[%emt 0:00:00]} 0-1

[Event "British Championship 2024"]
[Site "Hull"]
[Date "2024.07.31"]
[Round "3.21"]
[White "Ledger, Andrew J"]
[Black "Khoury, Theo"]
[Result "1/2-1/2"]
[Annotator "RC"]
[ECO "D36"]
[WhiteElo "2334"]
[BlackElo "2057"]
[PlyCount "77"]
[EventDate "2024.07.31"]
[EventCountry "GBR"]
[SourceTitle "playchess.com"]
[Source "ChessBase"]
[SourceQuality "1"]
[TimeControl "40/5400+30:1800+30"]

1. d4 {[%emt 0:00:04]} d5 {[%emt 0:00:18]} 2. c4 {[%emt 0:00:12]} e6 {[%emt 0:00:14]} 3. Nc3 {[%emt 0:00:14]} Nf6 {[%emt 0:00:08]} 4. Bg5 {[%emt 0:00:28]} Be7 {[%emt 0:00:36]} 5. e3 {[%emt 0:00:59]} h6 {[%emt 0:00:06]} 6. Bh4 {[%emt 0:00:37]} O-O {[%emt 0:00:13]} 7. Qc2 {[%emt 0:01:42]} Re8 {[%emt 0:00:14]} 8. a3 {[%emt 0:01:53]} Nbd7 {[%emt 0:04:55]} 9. cxd5 {[%emt 0:03:29]} exd5 {[%emt 0:00:15]} 10. Bd3 {[%emt 0:06:40]} c6 {[%emt 0:00:05]} 11. Nf3 {[%emt 0:02:40]} Ne4 {[%emt 0:01:20]} 12. Bxe7 {[%emt 0:00:20]} Qxe7 {[%emt 0:00:07]} 13. O-O {[%emt 0:01:05]} Nb6 {[%emt 0:02:13]} 14. a4 {[%emt 0:06:26]} a6 {[%emt 0:08:26]} 15. a5 {[%emt 0:09:43]} Nd7 {[%emt 0:00:07]} 16. Bxe4 {[%emt 0:04:58]} dxe4 {[%emt 0:00:10]} 17. Nd2 {[%emt 0:00:05]} Nf6 {[%emt 0:01:41]} 18. Na4 {[%emt 0:01:28]} Bf5 {[%emt 0:06:29]} 19. Ra3 {[%emt 0:07:32]} h5 {[%emt 0:17:45]} 20. Nc5 {[%emt 0:04:42]} h4 {[%emt 0:01:41]} 21. Rb3 {[%emt 0:13:46]} Rab8 {[%emt 0:00:51]} 22. f3 {[%emt 0:02:49]} Bg6 {[%emt 0:03:20]} 23. Ndxe4 {[%emt 0:02:43]} Nxe4 {[%emt 0:00:27]} 24. fxe4 {[%emt 0:00:11]} Bxe4 {[%emt 0:00:27]} 25. Nxe4 {[%emt 0:00:47]} Qxe4 {[%emt 0:00:09]} 26. Qxe4 {[%emt 0:01:11]} Rxe4 {[%emt 0:00:12]} 27. Rc1 {[%emt 0:00:07]} Rbe8 {[%emt 0:09:25]} 28. Kf2 {[%emt 0:06:23]} f5 {[%emt 0:02:38]} 29. Kf3 {[%emt 0:05:51]} R8e7 {[%emt 0:06:56]} 30. Rc5 {[%emt 0:02:08]} g6 {[%emt 0:00:09]} 31. d5 {[%emt 0:01:05]} cxd5 {[%emt 0:00:48]} 32. Rxd5 {[%emt 0:00:03]} Kg7 {[%emt 0:07:15]} 33. Rd6 {[%emt 0:01:11]} Kh6 {[%emt 0:00:42]} 34. Rd4 {[%emt 0:03:21]} Kg5 {[%emt 0:03:00]} 35. Rxe4 {[%emt 0:05:21]} fxe4+ {[%emt 0:00:09]} 36. Ke2 {[%emt 0:00:07]} Re5 {[%emt 0:01:01]} 37. Rxb7 {[%emt 0:01:27]} Rxa5 {[%emt 0:00:06]} 38. h3 {[%emt 0:00:39]} Rd5 {[%emt 0:02:01]} 39. Re7 {[%emt 0:02:13]} 1/2-1/2

[Event "British Championship 2024"]
[Site "Hull"]
[Date "2024.07.31"]
[Round "3.22"]
[White "Saunders, Aron"]
[Black "Wu, Li"]
[Result "1/2-1/2"]
[Annotator "RC"]
[ECO "B06"]
[WhiteElo "2105"]
[BlackElo "2328"]
[PlyCount "79"]
[EventDate "2024.07.31"]
[EventCountry "GBR"]
[SourceTitle "playchess.com"]
[Source "ChessBase"]
[SourceQuality "1"]
[TimeControl "40/5400+30:1800+30"]

1. e4 {[%emt 0:00:03]} c5 {[%emt 0:00:11]} 2. Nf3 {[%emt 0:00:07]} g6 {[%emt 0:00:11]} 3. c3 {[%emt 0:00:24]} d5 {[%emt 0:00:07]} 4. exd5 {[%emt 0:00:55]} Qxd5 {[%emt 0:00:04]} 5. d4 {[%emt 0:00:39]} Bg7 {[%emt 0:00:06]} 6. Be3 {[%emt 0:02:06]} Nf6 {[%emt 0:00:23]} 7. Be2 {[%emt 0:05:39]} cxd4 {[%emt 0:00:38]} 8. cxd4 {[%emt 0:00:27]} O-O {[%emt 0:00:06]} 9. Nc3 {[%emt 0:00:51]} Qa5 {[%emt 0:00:27]} 10. O-O {[%emt 0:01:00]} Be6 {[%emt 0:01:55]} 11. Qd2 {[%emt 0:03:58]} Nc6 {[%emt 0:00:20]} 12. Rfd1 {[%emt 0:08:55]} Rfd8 {[%emt 0:00:55]} 13. Rac1 {[%emt 0:02:29]} Rd7 {[%emt 0:11:44]} 14. h3 {[%emt 0:09:20]} Bd5 {[%emt 0:14:05]} 15. Nxd5 {[%emt 0:01:51]} Nxd5 {[%emt 0:00:31]} 16. Qxa5 {[%emt 0:02:13]} Nxa5 {[%emt 0:00:04]} 17. Bd2 {[%emt 0:20:57]} Nc6 {[%emt 0:12:36]} 18. Bb5 {[%emt 0:00:07]} Rd6 {[%emt 0:01:58]} 19. Bxc6 {[%emt 0:01:56]} Rxc6 {[%emt 0:00:35]} 20. Rxc6 {[%emt 0:00:51]} bxc6 {[%emt 0:00:04]} 21. Rc1 {[%emt 0:00:15]} Rc8 {[%emt 0:00:03]} 22. Kf1 {[%emt 0:02:54]} Kf8 {[%emt 0:00:13]} 23. Ke2 {[%emt 0:00:45]} Ke8 {[%emt 0:02:17]} 24. Kd3 {[%emt 0:00:14]} h6 {[%emt 0:00:21]} 25. b3 {[%emt 0:02:05]} Kd7 {[%emt 0:00:33]} 26. g4 {[%emt 0:02:58]} e6 {[%emt 0:06:06]} 27. h4 {[%emt 0:30:01]} Rh8 {[%emt 0:12:41]} 28. h5 {[%emt 0:00:00]} g5 {[%emt 0:01:12]} 29. Rc5 {[%emt 0:00:00]} f6 {[%emt 0:11:42]} 30. Ra5 {[%emt 0:00:00]} Ra8 {[%emt 0:00:04]} 31. Ke4 {[%emt 0:00:00]} Bf8 {[%emt 0:01:14]} 32. Ne1 {[%emt 0:00:00]} Bd6 {[%emt 0:03:35]} 33. Nd3 {[%emt 0:00:00]} Bc7 {[%emt 0:00:32]} 34. Nc5+ {[%emt 0:00:00]} Ke7 {[%emt 0:01:45]} 35. Ra6 {[%emt 0:00:00]} Bb6 {[%emt 0:00:05]} 36. Na4 {[%emt 0:00:00]} Rd8 {[%emt 0:07:20]} 37. Nxb6 {[%emt 0:00:00]} axb6 {[%emt 0:00:04]} 38. Ra7+ {[%emt 0:00:00]} Rd7 {[%emt 0:00:05]} 39. Ra8 {[%emt 0:00:00]} Rd8 {[%emt 0:00:38]} 40. Ra7+ {[%emt 0:00:00]} 1/2-1/2

[Event "British Championship 2024"]
[Site "Hull"]
[Date "2024.07.31"]
[Round "3.23"]
[White "Subramanian, Anusha"]
[Black "Richardson, John R"]
[Result "0-1"]
[Annotator "RC"]
[ECO "E25"]
[WhiteElo "2050"]
[BlackElo "2299"]
[PlyCount "120"]
[EventDate "2024.07.31"]
[EventCountry "GBR"]
[SourceTitle "playchess.com"]
[Source "ChessBase"]
[SourceQuality "1"]
[TimeControl "40/5400+30:1800+30"]

1. c4 {[%emt 0:00:03]} Nf6 {[%emt 0:00:07]} 2. Nc3 {[%emt 0:00:05]} e6 {[%emt 0:00:05]} 3. d4 {[%emt 0:00:03]} Bb4 {[%emt 0:00:30]} 4. f3 {[%emt 0:00:07]} d5 {[%emt 0:00:57]} 5. a3 {[%emt 0:00:04]} Bxc3+ {[%emt 0:00:10]} 6. bxc3 {[%emt 0:00:02]} c5 {[%emt 0:00:08]} 7. cxd5 {[%emt 0:00:13]} Nxd5 {[%emt 0:00:04]} 8. dxc5 {[%emt 0:00:26]} Qa5 {[%emt 0:00:12]} 9. e4 {[%emt 0:00:14]} Nf6 {[%emt 0:00:05]} 10. Be3 {[%emt 0:00:13]} O-O {[%emt 0:00:26]} 11. Qb3 {[%emt 0:00:08]} Nfd7 {[%emt 0:00:24]} 12. a4 {[%emt 0:00:14]} Qc7 {[%emt 0:00:28]} 13. Qa3 {[%emt 0:00:06]} b6 {[%emt 0:03:28]} 14. a5 {[%emt 0:00:07]} bxc5 {[%emt 0:00:45]} 15. a6 {[%emt 0:00:16]} c4 {[%emt 0:15:57]} 16. Nh3 {[%emt 0:19:53]} Bxa6 {[%emt 0:02:30]} 17. Be2 {[%emt 0:02:23]} Bb5 {[%emt 0:01:06]} 18. Rb1 {[%emt 0:02:36]} Qc6 {[%emt 0:01:34]} 19. Qa5 {[%emt 0:03:24]} a6 {[%emt 0:00:34]} 20. O-O {[%emt 0:00:59]} Ne5 {[%emt 0:06:11]} 21. Nf2 {[%emt 0:06:00]} Nbd7 {[%emt 0:00:28]} 22. f4 {[%emt 0:01:09]} Nd3 {[%emt 0:01:08]} 23. e5 {[%emt 0:03:37]} Rac8 {[%emt 0:02:13]} 24. Bf3 {[%emt 0:08:30]} Qc7 {[%emt 0:00:54]} 25. Qa3 {[%emt 0:04:13]} N7c5 {[%emt 0:00:34]} 26. Nxd3 {[%emt 0:04:56]} Nxd3 {[%emt 0:00:23]} 27. Be4 {[%emt 0:00:19]} Nxe5 {[%emt 0:26:48]} 28. fxe5 {[%emt 0:02:59]} Qxe5 {[%emt 0:00:03]} 29. Rbe1 {[%emt 0:11:51]} Qxe4 {[%emt 0:02:06]} 30. Bc5 {[%emt 0:00:18]} Qg4 {[%emt 0:06:43]} 31. Bxf8 {[%emt 0:02:09]} Bc6 {[%emt 0:00:22]} 32. Rf2 {[%emt 0:01:43]} Rxf8 {[%emt 0:00:05]} 33. Qxa6 {[%emt 0:02:15]} Bd5 {[%emt 0:00:03]} 34. Qd6 {[%emt 0:01:23]} h6 {[%emt 0:12:29]} 35. Qe5 {[%emt 0:03:20]} Ra8 {[%emt 0:02:58]} 36. h3 {[%emt 0:01:37]} Qg6 {[%emt 0:01:07]} 37. Kh2 {[%emt 0:01:24]} f6 {[%emt 0:04:04]} 38. Qg3 {[%emt 0:02:22]} Qxg3+ {[%emt 0:01:01]} 39. Kxg3 {[%emt 0:00:02]} Ra3 {[%emt 0:00:07]} 40. Re3 {[%emt 0:00:11]} Kf7 {[%emt 0:00:23]} 41. Rd2 {[%emt 0:31:42]} f5 {[%emt 0:33:44]} 42. Rc2 {[%emt 0:17:20]} g5 {[%emt 0:06:11]} 43. Ree2 {[%emt 0:00:00]} f4+ {[%emt 0:00:00]} 44. Kf2 {[%emt 0:00:00]} Kf6 {[%emt 0:00:00]} 45. Red2 {[%emt 0:00:00]} Be4 {[%emt 0:00:00]} 46. Rc1 {[%emt 0:00:00]} Bd3 {[%emt 0:00:00]} 47. Rb2 {[%emt 0:00:00]} Ra6 {[%emt 0:00:00]} 48. Kf3 {[%emt 0:00:00]} e5 {[%emt 0:00:00]} 49. Kf2 {[%emt 0:00:00]} e4 {[%emt 0:00:00]} 50. Re1 {[%emt 0:00:00]} h5 {[%emt 0:00:00]} 51. g4 {[%emt 0:00:00]} h4 {[%emt 0:00:00]} 52. Rd1 {[%emt 0:00:00]} e3+ {[%emt 0:00:00]} 53. Kf3 {[%emt 0:00:50]} Re6 {[%emt 0:00:22]} 54. Ra1 {[%emt 0:02:19]} Be4+ {[%emt 0:00:44]} 55. Ke2 {[%emt 0:00:06]} Bg2 {[%emt 0:00:17]} 56. Ke1 {[%emt 0:03:12]} Bxh3 {[%emt 0:01:36]} 57. Ra5 {[%emt 0:00:28]} Bxg4 {[%emt 0:01:26]} 58. Rbb5 {[%emt 0:00:47]} f3 {[%emt 0:01:16]} 59. Rxg5 {[%emt 0:00:37]} f2+ {[%emt 0:00:10]} 60. Kf1 {[%emt 0:00:04]} Bh3+ {[%emt 0:00:05]} 0-1

[Event "British Championship 2024"]
[Site "Hull"]
[Date "2024.07.31"]
[Round "3.24"]
[White "Rathbone-Jones, Ifan"]
[Black "Mirzoeva, Elmira"]
[Result "1/2-1/2"]
[Annotator "RC"]
[ECO "A45"]
[WhiteElo "2014"]
[BlackElo "2260"]
[PlyCount "86"]
[EventDate "2024.07.31"]
[EventCountry "GBR"]
[SourceTitle "playchess.com"]
[Source "ChessBase"]
[SourceQuality "1"]
[TimeControl "40/5400+30:1800+30"]

1. d4 {[%emt 0:00:05]} Nf6 {[%emt 0:00:11]} 2. Bf4 {[%emt 0:00:07]} b6 {[%emt 0:00:19]} 3. Nd2 {[%emt 0:00:38]} Bb7 {[%emt 0:00:17]} 4. e3 {[%emt 0:00:21]} g6 {[%emt 0:00:30]} 5. h3 {[%emt 0:00:08]} Bg7 {[%emt 0:00:19]} 6. Ngf3 {[%emt 0:00:11]} O-O {[%emt 0:00:28]} 7. Bd3 {[%emt 0:00:06]} d6 {[%emt 0:00:43]} 8. Qe2 {[%emt 0:01:05]} Nbd7 {[%emt 0:04:09]} 9. Ba6 {[%emt 0:02:58]} Qc8 {[%emt 0:03:45]} 10. Bxb7 {[%emt 0:00:08]} Qxb7 {[%emt 0:00:04]} 11. O-O {[%emt 0:06:50]} Rfe8 {[%emt 0:01:32]} 12. Bh2 {[%emt 0:05:13]} e5 {[%emt 0:04:42]} 13. dxe5 {[%emt 0:00:33]} dxe5 {[%emt 0:02:47]} 14. a4 {[%emt 0:06:52]} a6 {[%emt 0:09:27]} 15. Rfd1 {[%emt 0:12:20]} e4 {[%emt 0:08:40]} 16. Ng5 {[%emt 0:06:27]} Ne5 {[%emt 0:11:47]} 17. Nc4 {[%emt 0:01:19]} Nc6 {[%emt 0:02:58]} 18. h4 {[%emt 0:11:09]} h6 {[%emt 0:01:07]} 19. Nh3 {[%emt 0:00:34]} b5 {[%emt 0:10:39]} 20. axb5 {[%emt 0:00:45]} Qxb5 {[%emt 0:02:16]} 21. Bxc7 {[%emt 0:07:37]} Rac8 {[%emt 0:07:16]} 22. Bh2 {[%emt 0:01:51]} Nb4 {[%emt 0:07:28]} 23. b3 {[%emt 0:00:58]} Nfd5 {[%emt 0:01:22]} 24. Ra5 {[%emt 0:00:38]} Nc3 {[%emt 0:00:35]} 25. Qf1 {[%emt 0:07:38]} Qxa5 {[%emt 0:13:01]} 26. Nxa5 {[%emt 0:00:08]} Nxd1 {[%emt 0:00:03]} 27. Bd6 {[%emt 0:03:48]} Nc6 {[%emt 0:02:34]} 28. Nb7 {[%emt 0:07:05]} Nc3 {[%emt 0:00:26]} 29. Qxa6 {[%emt 0:00:24]} Ne5 {[%emt 0:01:07]} 30. Bxe5 {[%emt 0:09:30]} Bxe5 {[%emt 0:00:06]} 31. g3 {[%emt 0:00:04]} Re6 {[%emt 0:03:23]} 32. Qa5 {[%emt 0:00:41]} Ne2+ {[%emt 0:01:37]} 33. Kg2 {[%emt 0:01:19]} Rxc2 {[%emt 0:00:25]} 34. Nc5 {[%emt 0:01:11]} Re8 {[%emt 0:00:29]} 35. Qb5 {[%emt 0:01:10]} Rb8 {[%emt 0:00:22]} 36. Qa5 {[%emt 0:00:56]} Bxg3 {[%emt 0:00:50]} 37. Nxe4 {[%emt 0:01:56]} Bc7 {[%emt 0:00:38]} 38. Qa1 {[%emt 0:00:31]} Nc3 {[%emt 0:00:24]} 39. Nf6+ {[%emt 0:03:21]} Kg7 {[%emt 0:00:12]} 40. Qa7 {[%emt 0:01:14]} Nb5 {[%emt 0:00:48]} 41. Qa1 {[%emt 0:30:01]} Nc3 {[%emt 0:30:11]} 42. Qa7 {[%emt 0:00:00]} Nb5 {[%emt 0:00:00]} 43. Qa1 {[%emt 0:00:00]} Nc3 {[%emt 0:00:00]} 1/2-1/2

[Event "British Championship 2024"]
[Site "Hull"]
[Date "2024.07.31"]
[Round "3.25"]
[White "Pein, Malcolm"]
[Black "Sanger, Jake M"]
[Result "1-0"]
[Annotator "RC"]
[ECO "D94"]
[WhiteElo "2274"]
[BlackElo "2026"]
[PlyCount "82"]
[EventDate "2024.07.31"]
[EventCountry "GBR"]
[SourceTitle "playchess.com"]
[Source "ChessBase"]
[SourceQuality "1"]
[TimeControl "40/5400+30:1800+30"]

1. Nf3 {[%emt 0:00:04]} Nf6 {[%emt 0:00:07]} 2. d4 {[%emt 0:00:09]} g6 {[%emt 0:00:08]} 3. c4 {[%emt 0:01:08]} Bg7 {[%emt 0:00:09]} 4. Nc3 {[%emt 0:01:17]} d5 {[%emt 0:00:13]} 5. e3 {[%emt 0:04:13]} O-O {[%emt 0:00:34]} 6. cxd5 {[%emt 0:00:22]} Nxd5 {[%emt 0:00:10]} 7. Bc4 {[%emt 0:00:06]} Nb6 {[%emt 0:02:07]} 8. Bb3 {[%emt 0:00:16]} Nc6 {[%emt 0:01:53]} 9. O-O {[%emt 0:00:33]} e5 {[%emt 0:00:44]} 10. d5 {[%emt 0:01:19]} Na5 {[%emt 0:00:55]} 11. Bc2 {[%emt 0:02:22]} c6 {[%emt 0:04:37]} 12. e4 {[%emt 0:00:40]} cxd5 {[%emt 0:03:39]} 13. exd5 {[%emt 0:00:41]} f5 {[%emt 0:03:38]} 14. Bb3 {[%emt 0:28:59]} Nxb3 {[%emt 0:21:27]} 15. Qxb3 {[%emt 0:01:08]} f4 {[%emt 0:01:32]} 16. Rd1 {[%emt 0:11:00]} Kh8 {[%emt 0:02:36]} 17. Ne4 {[%emt 0:03:50]} Rf5 {[%emt 0:03:03]} 18. a4 {[%emt 0:05:24]} g5 {[%emt 0:08:47]} 19. Nc5 {[%emt 0:13:45]} g4 {[%emt 0:07:58]} 20. Ne6 {[%emt 0:01:44]} Qf6 {[%emt 0:04:16]} 21. Nxg7 {[%emt 0:01:17]} Kxg7 {[%emt 0:00:32]} 22. Nd2 {[%emt 0:01:08]} Rh5 {[%emt 0:04:27]} 23. Nf1 {[%emt 0:01:25]} Nd7 {[%emt 0:13:03]} 24. Bd2 {[%emt 0:01:48]} b6 {[%emt 0:01:26]} 25. Qb5 {[%emt 0:06:00]} Nc5 {[%emt 0:02:51]} 26. Qe8 {[%emt 0:02:45]} Qf7 {[%emt 0:02:18]} 27. Qxf7+ {[%emt 0:01:56]} Kxf7 {[%emt 0:00:03]} 28. Bc3 {[%emt 0:00:18]} e4 {[%emt 0:01:36]} 29. Nd2 {[%emt 0:00:30]} e3 {[%emt 0:03:59]} 30. fxe3 {[%emt 0:00:47]} fxe3 {[%emt 0:00:05]} 31. Nc4 {[%emt 0:02:58]} e2 {[%emt 0:00:57]} 32. Rd4 {[%emt 0:01:35]} Ba6 {[%emt 0:04:41]} 33. Rf4+ {[%emt 0:00:51]} Kg6 {[%emt 0:00:27]} 34. Ne5+ {[%emt 0:03:34]} Rxe5 {[%emt 0:01:19]} 35. Bxe5 {[%emt 0:00:01]} Re8 {[%emt 0:00:09]} 36. Bc3 {[%emt 0:00:43]} Nd3 {[%emt 0:00:39]} 37. Rxg4+ {[%emt 0:01:21]} Kh5 {[%emt 0:00:58]} 38. Rg7 {[%emt 0:00:58]} Rf8 {[%emt 0:00:41]} 39. Rxh7+ {[%emt 0:00:30]} Kg6 {[%emt 0:00:04]} 40. Rg7+ {[%emt 0:00:05]} Kh6 {[%emt 0:00:05]} 41. Rxa7 {[%emt 0:10:37]} Nc1 {[%emt 0:32:07]} 1-0

[Event "British Championship 2024"]
[Site "Hull"]
[Date "2024.07.31"]
[Round "3.27"]
[White "Madhavan, Sanjith"]
[Black "Pang, Ethan"]
[Result "1/2-1/2"]
[Annotator "RC"]
[ECO "B45"]
[WhiteElo "1998"]
[BlackElo "2164"]
[PlyCount "87"]
[EventDate "2024.07.31"]
[EventCountry "GBR"]
[SourceTitle "playchess.com"]
[Source "ChessBase"]
[SourceQuality "1"]
[TimeControl "40/5400+30:1800+30"]

1. e4 {[%emt 0:00:01]} c5 {[%emt 0:01:27]} 2. Nf3 {[%emt 0:00:20]} Nc6 {[%emt 0:00:16]} 3. d4 {[%emt 0:00:06]} cxd4 {[%emt 0:00:19]} 4. Nxd4 {[%emt 0:00:06]} Nf6 {[%emt 0:00:17]} 5. Nc3 {[%emt 0:01:06]} e6 {[%emt 0:00:30]} 6. g3 {[%emt 0:03:10]} d5 {[%emt 0:14:12]} 7. Bb5 {[%emt 0:04:54]} Qd7 {[%emt 0:04:18]} 8. exd5 {[%emt 0:07:17]} Nxd5 {[%emt 0:01:22]} 9. Qf3 {[%emt 0:06:30]} a6 {[%emt 0:05:05]} 10. Ba4 {[%emt 0:03:22]} Nxc3 {[%emt 0:10:04]} 11. Qxc3 {[%emt 0:10:19]} b5 {[%emt 0:03:49]} 12. Qxc6 {[%emt 0:00:35]} Qxc6 {[%emt 0:01:10]} 13. Nxc6 {[%emt 0:00:09]} bxa4 {[%emt 0:00:35]} 14. O-O {[%emt 0:01:37]} Bb7 {[%emt 0:00:25]} 15. Na5 {[%emt 0:07:05]} Be4 {[%emt 0:00:27]} 16. c3 {[%emt 0:00:53]} Rc8 {[%emt 0:03:29]} 17. Be3 {[%emt 0:04:21]} a3 {[%emt 0:01:01]} 18. bxa3 {[%emt 0:02:03]} Bxa3 {[%emt 0:03:15]} 19. Bd4 {[%emt 0:04:53]} O-O {[%emt 0:01:03]} 20. Rfe1 {[%emt 0:03:20]} Bf5 {[%emt 0:01:30]} 21. Re2 {[%emt 0:04:25]} Rfd8 {[%emt 0:01:27]} 22. Nb3 {[%emt 0:00:38]} f6 {[%emt 0:02:17]} 23. f4 {[%emt 0:00:23]} Rd5 {[%emt 0:00:30]} 24. Rae1 {[%emt 0:05:44]} Bd6 {[%emt 0:06:18]} 25. Kg2 {[%emt 0:05:44]} a5 {[%emt 0:02:20]} 26. Kg1 {[%emt 0:09:46]} a4 {[%emt 0:01:53]} 27. Nd2 {[%emt 0:00:37]} e5 {[%emt 0:00:31]} 28. fxe5 {[%emt 0:01:20]} fxe5 {[%emt 0:00:05]} 29. Bxe5 {[%emt 0:08:06]} Bg4 {[%emt 0:00:11]} 30. Re4 {[%emt 0:00:06]} Bxe5 {[%emt 0:00:25]} 31. Rxg4 {[%emt 0:00:01]} Bxc3 {[%emt 0:00:10]} 32. Ne4 {[%emt 0:00:00]} Be5 {[%emt 0:05:27]} 33. Re2 {[%emt 0:02:31]} g6 {[%emt 0:03:26]} 34. Ng5 {[%emt 0:00:40]} a3 {[%emt 0:01:57]} 35. Rge4 {[%emt 0:01:17]} Bf6 {[%emt 0:02:11]} 36. Ne6 {[%emt 0:00:42]} Rb5 {[%emt 0:00:55]} 37. Nf4 {[%emt 0:01:38]} Rb2 {[%emt 0:02:42]} 38. Kf2 {[%emt 0:00:23]} Rd8 {[%emt 0:02:02]} 39. Kf3 {[%emt 0:00:46]} Kf7 {[%emt 0:00:57]} 40. h4 {[%emt 0:00:42]} Rd1 {[%emt 0:00:42]} 41. R4e3 {[%emt 0:31:45]} Rf1+ {[%emt 0:37:34]} 42. Kg2 {[%emt 0:00:00]} Re1 {[%emt 0:00:00]} 43. Kf3 {[%emt 0:00:00]} Rf1+ {[%emt 0:00:00]} 44. Ke4 {[%emt 0:03:09]} 1/2-1/2